bitfinex/quotes_ETHUSD_20240825
["timestamp","ask_amount","ask_price","bid_price","bid_amount"]
[1724581798292,3.62191,2761.0,2760.8,2.4169]
[1724581798612,3.62191,2761.0,2760.9,0.45330083]
[1724581800946,3.62226,2760.7,2760.5,0.90660138]
[1724581801221,3.62226,2760.7,2760.4,2.435]
[1724581803481,3.62207,2760.9,2760.4,2.435]
[1724581804708,7.24417,2760.9,2760.4,2.435]
[1724581805027,3.62214,2760.8,2760.4,2.435]
[1724581806402,3.62232,2760.7,2760.4,2.435]
[1724581810404,7.46,2761.2,2760.4,2.435]
[1724581810607,3.62253,2760.5,2760.4,2.435]
[1724581811203,3.62202,2760.9,2760.2,2.435]
[1724581811204,3.62271,2760.4,2760.2,2.435]
[1724581811604,3.62241,2760.6,2760.2,2.435]
[1724581811817,3.62254,2760.5,2760.2,2.435]
[1724581812107,3.62241,2760.6,2760.2,2.435]
[1724581812308,3.62217,2760.8,2760.2,3.040816]
[1724581812512,3.62217,2760.8,2760.3,2.435]
[1724581812719,7.24439,2760.8,2760.3,2.435]
[1724581812911,3.62217,2760.8,2760.3,2.435]
[1724581813107,7.24439,2760.8,2760.3,2.435]
[1724581813566,3.62227,2760.7,2760.3,2.88795419]
[1724581820357,3.62217,2760.8,2760.3,2.88795419]
[1724581820516,7.46,2761.2,2760.4,3.62254]
[1724581820715,3.62195,2761.0,2760.5,2.435]
[1724581821164,3.62201,2760.9,2760.5,2.435]
[1724581821317,7.24394,2761.0,2760.5,3.1313836]
[1724581821518,3.62201,2760.9,2760.5,3.1313836]
[1724581823471,3.62201,2760.9,2760.6,2.2872]
[1724581824720,7.24392,2761.0,2760.6,2.2872]
[1724581824920,3.62195,2761.0,2760.7,0.29835836]
[1724581825154,3.62195,2761.0,2760.8,2.2872]
[1724581825470,7.24394,2761.0,2760.8,2.2872]
[1724581825829,7.24391,2761.0,2760.8,2.2872]
[1724581826274,3.62195,2761.0,2760.8,2.2872]
[1724581826634,7.2434,2761.2,2760.8,2.51592]
[1724581826866,3.62145,2761.4,2760.8,2.51592]
[1724581827190,3.62145,2761.4,2761.0,2.2872]
[1724581827728,3.62145,2761.4,2761.0,2.35962774]
[1724581827923,3.62145,2761.4,2761.2,2.2872]
[1724581833143,3.62143,2761.4,2761.2,2.2872]
[1724581834179,7.24287,2761.4,2761.2,2.2872]
[1724581835045,3.62143,2761.4,2761.2,2.2872]
[1724581836958,3.62125,2761.5,2761.2,2.2872]
[1724581841285,3.62137,2761.4,2761.2,2.2872]
[1724581841482,3.62173,2761.2,2760.8,2.4823]
[1724581841782,3.62177,2761.1,2760.8,2.4823]
[1724581841987,3.62156,2761.3,2760.8,2.4823]
[1724581842189,3.62162,2761.2,2760.8,2.4823]
[1724581842582,3.62143,2761.4,2760.8,6.10436]
[1724581842782,3.62143,2761.4,2760.9,2.4823]
[1724581844798,3.62143,2761.4,2760.9,6.10427]
[1724581845023,3.62143,2761.4,2761.0,2.4823]
[1724581850201,7.24286,2761.4,2761.0,2.4823]
[1724581850524,3.62143,2761.4,2761.0,2.4823]
[1724581852022,3.62143,2761.4,2761.1,2.4823]
[1724581853630,11.08115,2761.6,2761.1,2.4823]
[1724581853800,3.62123,2761.5,2761.1,2.4823]
[1724581855641,3.62064,2762.0,2761.3,2.4823]
[1724581855947,3.62064,2762.0,2761.5,2.4823]
[1724581856150,3.6207,2761.9,2761.5,2.4823]
[1724581857744,3.6207,2761.9,2761.5,2.4823]
[1724581859815,3.6207,2761.9,2761.5,2.55471721]
[1724581860344,7.24148,2761.9,2761.5,2.4823]
[1724581860908,3.6207,2761.9,2761.5,2.4823]
[1724581861109,3.6207,2761.9,2761.5,0.63591628]
[1724581861330,7.24147,2761.9,2761.6,2.4884]
[1724581861511,3.62083,2761.8,2761.6,2.4884]
[1724581861741,3.62095,2761.7,2761.6,2.4884]
[1724581865349,3.62095,2761.7,2761.1,3.62166]
[1724581865350,3.62095,2761.7,2761.3,2.4884]
[1724581865911,3.6211,2761.6,2761.3,2.4884]
[1724581866117,0.724205,2761.6,2761.0,2.4884]
[1724581866315,0.724205,2761.6,2760.6,0.54290519]
[1724581866316,3.62203,2760.9,2760.7,2.4884]
[1724581866716,3.62181,2761.1,2760.7,2.4884]
[1724581868029,3.62155,2761.3,2760.7,6.11065]
[1724581868242,3.62155,2761.3,2760.8,6.1105]
[1724581868412,3.62138,2761.4,2761.0,2.4884]
[1724581870431,7.24282,2761.4,2761.0,2.4884]
[1724581870657,3.62138,2761.4,2761.0,2.4884]
[1724581871565,7.24283,2761.4,2761.0,2.4884]
[1724581871782,3.62148,2761.3,2761.0,2.4884]
[1724581872121,3.62168,2761.2,2760.7,2.4449]
[1724581872478,3.62167,2761.2,2760.7,2.4449]
[1724581872771,3.62194,2761.0,2760.7,2.4449]
[1724581874889,3.62167,2761.2,2760.7,2.4449]
[1724581875179,3.62176,2761.1,2760.7,2.4449]
[1724581881229,3.62167,2761.2,2760.7,2.4449]
[1724581881545,7.24338,2761.2,2760.7,2.4449]
[1724581881931,3.62175,2761.1,2760.7,2.4449]
[1724581886172,3.62167,2761.2,2760.7,2.4449]
[1724581887426,7.46,2761.5,2761.0,6.10238]
[1724581887632,3.62114,2761.6,2761.1,2.4806]
[1724581888579,3.6204,2762.2,2761.5,3.62114]
[1724581888778,7.46,2762.5,2761.7,3.62086]
[1724581888779,3.62017,2762.3,2761.7,3.62086]
[1724581889097,3.62017,2762.3,2761.8,2.4806]
[1724581890574,11.07993,2762.5,2761.9,3.69297692]
[1724581890834,11.07993,2762.5,2762.0,2.4806]
[1724581892789,3.61993,2762.5,2762.0,2.4806]
[1724581893229,3.61966,2762.7,2762.1,2.55300277]
[1724581893405,3.61979,2762.6,2762.1,2.4806]
[1724581894564,3.61898,2763.3,2762.7,6.10014]
[1724581894692,3.61871,2763.5,2762.7,6.10014]
[1724581894890,3.61886,2763.3,2762.7,6.10014]
[1724581896023,3.61886,2763.3,2762.7,9.71969]
[1724581896188,3.61886,2763.3,2762.7,7.072109]
[1724581896929,3.61886,2763.3,2762.7,10.691659]
[1724581897927,3.61869,2763.5,2762.9,3.61938]
[1724581898362,3.61847,2763.6,2763.0,6.09976]
[1724581899329,3.6186,2763.5,2763.0,2.4806]
[1724581900127,3.61798,2764.0,2763.2,3.61897]
[1724581900513,3.61833,2763.7,2763.1,2.4806]
[1724581900694,3.61847,2763.6,2763.1,2.4806]
[1724581901027,3.61868,2763.5,2763.1,2.4806]
[1724581902033,3.61874,2763.4,2763.1,2.4806]
[1724581903359,7.23758,2763.4,2763.1,2.4806]
[1724581903649,3.61874,2763.4,2763.1,2.4806]
[1724581910564,3.61859,2763.5,2763.1,2.4806]
[1724581911362,3.61859,2763.5,2763.1,3.090577]
[1724581911951,3.6185,2763.6,2763.1,3.090577]
[1724581912360,7.23707,2763.6,2763.1,3.090577]
[1724581912758,3.61824,2763.8,2763.2,2.3648]
[1724581913065,3.61824,2763.8,2763.3,2.3648]
[1724581913932,7.23656,2763.8,2763.3,2.3648]
[1724581914131,3.61836,2763.7,2763.3,2.3648]
[1724581915065,3.61851,2763.6,2763.3,2.3648]
[1724581915369,3.61907,2763.2,2762.9,2.3648]
[1724581921341,3.61925,2763.0,2762.9,2.3648]
[1724581921982,3.6194,2762.9,2762.7,2.4886]
[1724581923973,7.23887,2762.9,2762.7,2.4886]
[1724581924271,3.6194,2762.9,2762.7,2.4886]
[1724581924574,3.61945,2762.9,2762.7,2.4886]
[1724581928071,0.723864,2762.9,2762.4,2.4886]
[1724581928273,3.61966,2762.7,2761.7,2.4886]
[1724581928610,3.6201,2762.4,2761.8,3.62081]
[1724581928745,3.6201,2762.4,2761.9,2.4886]
[1724581928944,3.6201,2762.4,2762.1,2.4886]
[1724581930789,3.62027,2762.3,2762.1,2.4886]
[1724581933346,3.6203,2762.2,2761.6,2.4886]
[1724581933687,3.62044,2762.1,2761.6,2.4886]
[1724581933888,3.62044,2762.1,2761.7,0.610971]
[1724581934389,3.62031,2762.2,2761.7,0.610971]
[1724581934591,3.62018,2762.3,2761.8,2.56100972]
[1724581937085,3.62011,2762.4,2761.8,2.56100972]
[1724581937290,3.62011,2762.4,2761.9,0.67928207]
[1724581937493,3.62011,2762.4,2762.0,2.4886]
[1724581937991,3.62017,2762.3,2762.0,2.4886]
[1724581939287,3.62011,2762.4,2762.0,2.4886]
[1724581939288,3.62031,2762.2,2762.0,2.4886]
[1724581940475,3.62011,2762.4,2762.0,2.4886]
[1724581940673,11.0796,2762.8,2762.2,3.62029]
[1724581940873,3.61965,2762.7,2762.3,2.2719]
[1724581942477,3.6198,2762.6,2762.3,2.2719]
[1724581945209,3.6196,2762.8,2762.3,2.2719]
[1724581945506,3.61964,2762.7,2762.3,2.2719]
[1724581945665,3.61964,2762.7,2762.4,0.23442957]
[1724581945867,3.61964,2762.7,2762.5,2.2719]
[1724581949228,3.6196,2762.8,2762.5,2.2719]
[1724581949395,3.61941,2762.9,2762.5,2.2719]
[1724581950420,3.61927,2763.0,2762.6,2.2719]
[1724581950596,3.61927,2763.0,2762.7,2.50632899]
[1724581951411,3.61927,2763.0,2762.7,2.2719]
[1724581951929,7.46,2763.1,2762.0,0.610941]
[1724581951930,3.61989,2762.6,2762.2,2.2719]
[1724581952135,3.62017,2762.3,2762.2,2.2719]
[1724581952339,3.62048,2762.1,2761.6,2.2719]
[1724581952501,7.24101,2762.1,2761.6,2.2719]
[1724581952679,3.62048,2762.1,2761.6,2.2719]
[1724581953002,3.62048,2762.1,2761.6,5.89298]
[1724581954220,3.62048,2762.1,2761.6,2.2719]
[1724581956517,3.62048,2762.1,2761.6,5.89298]
[1724581956697,3.62048,2762.1,2761.6,6.844391]
[1724581956897,3.62048,2762.1,2761.6,3.223311]
[1724581957615,3.62022,2762.3,2761.6,4.572471]
[1724581957814,7.2405,2762.3,2761.7,2.2719]
[1724581958020,7.2405,2762.3,2761.7,3.3184501]
[1724581958831,3.62022,2762.3,2761.7,4.6675001]
[1724581959028,3.61995,2762.5,2762.0,2.2719]
[1724581960332,7.23997,2762.5,2762.0,2.2719]
[1724581960492,3.62005,2762.4,2762.0,2.2719]
[1724581962095,7.46,2762.7,2762.0,2.2719]
[1724581962096,3.62021,2762.3,2762.0,2.2719]
[1724581962531,3.62031,2762.2,2762.0,2.2719]
[1724581963230,0.746,2762.6,2761.7,2.4461]
[1724581963231,3.62043,2762.1,2761.7,2.4461]
[1724581963444,3.62005,2762.4,2761.7,2.4461]
[1724581963619,3.62077,2761.9,2761.7,2.4461]
[1724581963801,3.62077,2761.9,2761.2,2.4461]
[1724581963995,2.3681,2762.3,2761.2,2.4461]
[1724581964229,2.3681,2762.3,2761.2,6.0677]
[1724581964230,3.62104,2761.7,2761.2,6.0677]
[1724581964437,3.62072,2761.9,2761.2,6.73123131]
[1724581964639,3.62072,2761.9,2761.3,3.6214]
[1724581964851,3.62072,2761.9,2761.4,2.4461]
[1724581967504,7.2415,2761.9,2761.4,2.4461]
[1724581967708,3.62072,2761.9,2761.4,2.4461]
[1724581967907,7.2415,2761.9,2761.4,3.48135413]
[1724581969721,3.62072,2761.9,2761.4,3.48135413]
[1724581971321,7.24151,2761.9,2761.4,3.48135413]
[1724581972416,3.62072,2761.9,2761.4,3.48135413]
[1724581972621,7.2415,2761.9,2761.4,3.48135413]
[1724581975319,14.08005,2762.4,2761.4,2.4461]
[1724581975320,2.3681,2762.1,2761.4,2.4461]
[1724581975544,3.62117,2761.6,2761.4,2.4461]
[1724581975731,3.62117,2761.6,2761.1,2.4461]
[1724581975931,3.62143,2761.4,2761.1,2.4461]
[1724581976164,3.62143,2761.4,2761.1,2.69071]
[1724581981042,3.62143,2761.4,2761.1,2.4461]
[1724581981291,7.2434,2761.2,2760.8,2.3739]
[1724581981461,3.6217,2761.2,2760.8,2.3739]
[1724581982643,3.62141,2761.4,2760.8,2.3739]
[1724581984142,3.62151,2761.3,2760.8,2.3739]
[1724581989559,3.62116,2761.6,2760.9,2.4463371]
[1724581989755,3.62116,2761.6,2761.0,5.99577]
[1724581990403,3.62135,2761.4,2761.0,2.3739]
[1724581994695,7.2428,2761.4,2761.0,2.3739]
[1724581996170,3.62135,2761.4,2761.0,2.3739]
[1724581996816,3.62149,2761.3,2761.0,2.3739]
[1724581997018,3.62149,2761.3,2761.0,3.05928637]
[1724582003239,7.24308,2761.3,2761.0,3.05928637]
[1724582003532,3.62174,2761.1,2761.0,2.3739]
[1724582003697,5.90012,2761.6,2760.5,2.2821]
[1724582003698,3.62162,2761.2,2760.5,2.2821]
[1724582003899,3.62187,2761.0,2760.5,6.495075]
[1724582008230,3.62187,2761.0,2760.5,10.117525]
[1724582008416,3.62187,2761.0,2760.5,6.495015]
[1724582009497,3.62187,2761.0,2760.5,10.117475]
[1724582011254,7.24331,2761.2,2760.6,3.62238]
[1724582012303,3.62207,2760.9,2760.6,2.2821]
[1724582012621,3.62215,2760.8,2760.6,2.2821]
[1724582014035,3.62201,2760.9,2760.6,2.2821]
[1724582017048,3.62214,2760.8,2760.6,2.2821]
[1724582017348,3.62214,2760.8,2760.1,0.56775036]
[1724582017349,3.62226,2760.7,2760.4,2.2821]
[1724582019446,3.62244,2760.6,2760.4,2.2821]
[1724582019649,3.62279,2760.3,2759.8,0.33959385]
[1724582019834,3.62301,2760.2,2759.9,2.2821]
[1724582020214,3.62279,2760.3,2759.9,2.2821]
[1724582020215,3.62307,2760.1,2759.9,2.2821]
[1724582020842,3.62279,2760.3,2759.9,2.2821]
[1724582021040,3.6226,2760.5,2760.0,2.2821]
[1724582023249,3.62287,2760.3,2760.0,2.2821]
[1724582026929,3.62266,2760.4,2760.0,2.2821]
[1724582027988,11.08244,2760.6,2760.0,2.2821]
[1724582028265,7.46,2760.6,2760.2,3.62286]
[1724582028588,7.46,2760.6,2760.3,2.45374852]
[1724582029284,7.46,2760.6,2760.4,2.3813]
[1724582029587,3.62215,2760.8,2760.4,2.3813]
[1724582029950,3.622,2760.9,2760.4,2.3813]
[1724582030124,3.622,2760.9,2760.5,2.3813]
[1724582031128,3.62214,2760.8,2760.5,2.3813]
[1724582033290,7.24411,2760.9,2760.5,2.3813]
[1724582035419,3.62218,2760.8,2760.5,2.3813]
[1724582037243,3.62229,2760.7,2760.5,2.3813]
[1724582037549,3.6224,2760.6,2760.5,2.3813]
[1724582037755,7.24466,2760.7,2760.5,2.3813]
[1724582038924,3.62229,2760.7,2760.5,2.3813]
[1724582039436,7.24466,2760.7,2760.5,2.3813]
[1724582039742,3.62229,2760.7,2760.5,2.3813]
[1724582040299,3.6224,2760.6,2760.5,2.3813]
[1724582040541,3.6226,2760.5,2760.0,2.3669]
[1724582042258,3.6226,2760.5,2760.1,2.2989]
[1724582043237,7.24489,2760.6,2760.1,2.2989]
[1724582043605,3.6224,2760.6,2760.1,2.2989]
[1724582043807,3.6224,2760.6,2760.1,3.253431]
[1724582044061,7.24487,2760.6,2760.1,3.253431]
[1724582044403,3.6224,2760.6,2760.1,3.253431]
[1724582044848,7.24489,2760.6,2760.1,3.253431]
[1724582045051,3.6224,2760.6,2760.1,3.253431]
[1724582045454,3.62253,2760.5,2760.1,3.253431]
[1724582046506,3.6224,2760.6,2760.1,3.253431]
[1724582051212,7.24488,2760.6,2760.1,3.253431]
[1724582051410,3.623,2760.2,2759.9,2.2989]
[1724582053273,7.24605,2760.2,2759.7,2.2989]
[1724582053777,3.62309,2760.1,2759.7,2.2989]
[1724582058054,3.62332,2759.9,2759.7,2.2989]
[1724582058976,3.62309,2760.1,2759.7,2.2989]
[1724582059742,3.62319,2760.0,2759.7,2.2989]
[1724582064551,3.62335,2759.9,2759.7,2.2989]
[1724582064757,3.62335,2759.9,2759.5,2.4858]
[1724582065573,7.24677,2759.9,2759.5,2.4858]
[1724582065790,3.62346,2759.8,2759.5,2.4858]
[1724582066104,3.62358,2759.7,2759.5,2.4858]
[1724582067352,7.24679,2759.9,2759.5,2.4858]
[1724582068607,3.62347,2759.8,2759.5,2.4858]
[1724582070601,3.62359,2759.7,2759.5,2.4858]
[1724582070912,3.62393,2759.5,2759.2,2.4858]
[1724582071089,3.62401,2759.4,2759.2,2.4858]
[1724582071676,3.62393,2759.5,2759.2,2.4858]
[1724582080234,3.62345,2759.8,2759.2,2.4858]
[1724582080395,3.62333,2759.9,2759.4,2.4858]
[1724582080780,3.62333,2759.9,2759.4,3.62395]
[1724582080980,3.62312,2760.1,2759.5,3.6238]
[1724582081203,3.62323,2760.0,2759.6,2.4618]
[1724582082418,3.62332,2759.9,2759.6,2.4618]
[1724582086522,7.24672,2759.9,2759.6,2.4618]
[1724582086885,7.24673,2759.9,2759.6,2.4618]
[1724582087112,3.62358,2759.7,2759.6,2.4618]
[1724582087430,3.62392,2759.5,2759.3,3.0286966]
[1724582087588,3.62392,2759.5,2759.3,2.4618]
[1724582088209,3.62397,2759.4,2759.3,2.4618]
[1724582089590,3.62397,2759.4,2759.0,2.4618]
[1724582089908,3.62413,2759.3,2759.0,2.4618]
[1724582090358,3.62397,2759.4,2759.0,2.4618]
[1724582094152,3.62411,2759.3,2759.0,2.4618]
[1724582098923,3.62437,2759.1,2759.0,2.4618]
[1724582100652,3.62437,2759.1,2758.6,2.3132]
[1724582101466,3.6245,2759.0,2758.6,2.3132]
[1724582101762,3.62464,2758.9,2758.6,2.3132]
[1724582101924,3.6245,2759.0,2758.6,2.3132]
[1724582102426,3.6243,2759.2,2758.7,2.3499]
[1724582102826,11.08405,2759.4,2758.8,2.3499]
[1724582102827,14.70815,2759.4,2758.8,2.3499]
[1724582103146,14.70815,2759.4,2758.7,3.62481]
[1724582103147,3.62411,2759.3,2758.9,2.3499]
[1724582103721,14.7081,2759.4,2758.9,2.3499]
[1724582103933,7.2481,2759.4,2758.9,2.3499]
[1724582104264,3.6241,2759.3,2758.9,2.3499]
[1724582105663,3.62399,2759.4,2758.9,2.3499]
[1724582106772,3.62385,2759.5,2758.9,5.97452]
[1724582107057,7.24781,2759.5,2759.0,2.3499]
[1724582107260,3.62385,2759.5,2759.0,2.3499]
[1724582107976,3.62404,2759.4,2759.0,2.3499]
[1724582109536,3.62385,2759.5,2759.0,2.3499]
[1724582109737,23.29359,2759.7,2759.2,5.97402]
[1724582109941,3.62336,2759.9,2759.3,5.97399]
[1724582110137,3.62359,2759.7,2759.3,2.3499]
[1724582111325,3.62371,2759.6,2759.3,2.3499]
[1724582112147,2.3376,2759.9,2759.3,2.3499]
[1724582112370,3.62397,2759.4,2758.9,2.3499]
[1724582113649,3.62397,2759.4,2758.9,5.97452]
[1724582117279,3.62397,2759.4,2759.0,2.3499]
[1724582119173,3.62381,2759.6,2759.0,3.6245]
[1724582119338,11.08361,2759.7,2759.2,5.9741]
[1724582122265,11.08361,2759.7,2759.2,3.6242]
[1724582122461,11.08361,2759.7,2759.3,2.351]
[1724582124174,3.62378,2759.6,2759.3,2.351]
[1724582125740,3.62361,2759.7,2759.3,2.351]
[1724582126348,3.62314,2760.1,2759.5,2.351]
[1724582126543,26.29286,2760.3,2759.4,3.62389]
[1724582126544,19.67,2760.3,2759.9,3.62324]
[1724582126745,3.62263,2760.5,2760.0,5.97418]
[1724582127255,7.24527,2760.5,2760.0,2.351]
[1724582127452,3.62267,2760.4,2760.0,2.351]
[1724582134177,3.62279,2760.3,2760.0,2.351]
[1724582134580,3.62305,2760.1,2759.6,2.351]
[1724582134794,3.62305,2760.1,2759.7,2.351]
[1724582136407,7.24569,2760.3,2759.7,2.351]
[1724582136742,3.62279,2760.3,2759.7,2.351]
[1724582136925,2.2637,2760.5,2759.7,2.351]
[1724582136926,3.62337,2759.9,2759.7,2.351]
[1724582137129,3.62337,2759.9,2759.4,2.351]
[1724582137303,2.2637,2760.2,2759.4,2.351]
[1724582137507,3.62363,2759.7,2759.4,2.351]
[1724582139725,7.24679,2759.9,2759.4,2.351]
[1724582139903,3.62347,2759.8,2759.4,2.351]
[1724582140733,3.6236,2759.7,2759.4,2.351]
[1724582141130,7.24728,2759.7,2759.2,2.491]
[1724582141294,7.24729,2759.7,2759.2,2.491]
[1724582141492,3.6236,2759.7,2759.2,2.491]
[1724582141695,3.6239,2759.5,2759.2,2.491]
[1724582142035,3.62398,2759.4,2759.0,2.491]
[1724582142794,3.62379,2759.6,2759.0,6.11549]
[1724582143409,2.3802,2759.5,2758.6,2.491]
[1724582143735,0.23802,2759.4,2758.6,2.491]
[1724582144235,3.62441,2759.1,2758.6,2.491]
[1724582144423,3.62464,2758.9,2758.6,2.491]
[1724582145731,3.62477,2758.8,2758.6,2.491]
[1724582146565,3.62444,2759.1,2758.6,2.491]
[1724582147103,3.62463,2758.9,2758.6,2.491]
[1724582147700,7.24936,2758.9,2758.6,2.491]
[1724582147939,3.62476,2758.8,2758.6,2.491]
[1724582149004,3.62463,2758.9,2758.6,2.491]
[1724582149204,7.24936,2758.9,2758.6,2.491]
[1724582150201,3.62477,2758.8,2758.6,2.491]
[1724582150939,3.62489,2758.7,2758.3,2.2836]
[1724582151412,3.62518,2758.5,2758.3,2.2836]
[1724582158920,11.08465,2758.9,2758.3,2.2836]
[1724582159352,3.62486,2758.8,2758.3,2.2836]
[1724582159563,3.62486,2758.8,2758.4,2.2836]
[1724582159917,11.08465,2758.9,2758.4,2.2836]
[1724582160114,7.46,2758.9,2758.5,3.69757064]
[1724582160414,7.46,2758.9,2758.7,2.2836]
[1724582160821,7.46,2758.9,2758.8,2.4139]
[1724582161126,7.46,2758.9,2758.8,3.02502727]
[1724582161326,7.46,2758.9,2758.8,2.4139]
[1724582163518,3.62458,2759.0,2758.8,2.4139]
[1724582165012,3.62463,2758.9,2758.8,2.4139]
[1724582165217,3.62496,2758.7,2758.3,2.4139]
[1724582166185,3.62527,2758.5,2758.3,2.4139]
[1724582167257,3.62529,2758.4,2758.3,2.4139]
[1724582167843,3.62529,2758.4,2758.1,2.4139]
[1724582168450,3.62542,2758.3,2758.1,2.4139]
[1724582169061,3.62555,2758.2,2758.1,2.4139]
[1724582169264,3.62555,2758.2,2758.0,3.81e-06]
[1724582169265,3.62542,2758.3,2758.0,3.81e-06]
[1724582169892,7.25048,2758.5,2758.0,3.81e-06]
[1724582170296,3.62521,2758.5,2758.0,3.81e-06]
[1724582171203,3.62544,2758.3,2758.0,3.81e-06]
[1724582172040,3.62497,2758.7,2758.1,2.4228]
[1724582172244,3.62503,2758.6,2758.2,0.56711341]
[1724582172507,3.62503,2758.6,2758.1,2.4228]
[1724582172647,3.62517,2758.5,2758.1,2.4228]
[1724582173401,3.62517,2758.5,2758.2,0.56713849]
[1724582173575,3.62517,2758.5,2758.1,2.4228]
[1724582173784,3.62517,2758.5,2758.2,0.56713077]
[1724582173976,3.62517,2758.5,2758.1,3.11839317]
[1724582174158,3.62517,2758.5,2758.2,0.56713042]
[1724582174364,3.62517,2758.5,2758.1,3.11839317]
[1724582174651,3.62517,2758.5,2758.2,0.56712812]
[1724582174848,3.62517,2758.5,2758.1,3.11839317]
[1724582175051,3.62517,2758.5,2758.2,0.56713842]
[1724582175349,3.62517,2758.5,2758.1,3.11839317]
[1724582175556,7.2504,2758.5,2758.1,3.11839317]
[1724582175799,3.62555,2758.2,2758.1,2.4228]
[1724582175951,3.62555,2758.2,2758.1,0.56717766]
[1724582176150,3.62568,2758.1,2758.0,3.81e-06]
[1724582177767,9.59436,2758.1,2758.0,3.81e-06]
[1724582178029,7.25136,2758.1,2758.0,3.81e-06]
[1724582179601,7.976496,2758.1,2758.0,3.81e-06]
[1724582181602,7.25136,2758.1,2758.0,3.81e-06]
[1724582183373,3.62544,2758.3,2758.0,3.81e-06]
[1724582183731,3.62555,2758.2,2758.0,3.81e-06]
[1724582185534,3.62544,2758.3,2758.0,3.81e-06]
[1724582185824,3.62557,2758.2,2758.0,3.81e-06]
[1724582187617,3.62568,2758.1,2758.0,3.81e-06]
[1724582189126,7.25136,2758.1,2758.0,3.81e-06]
[1724582192931,11.42704,2758.1,2758.0,3.81e-06]
[1724582193135,14.42704,2758.1,2758.0,3.81e-06]
[1724582196382,20.38542,2758.1,2758.0,3.81e-06]
[1724582197701,16.75974,2758.1,2758.0,3.81e-06]
[1724582197876,16.103014,2758.1,2758.0,3.81e-06]
[1724582201095,6.62568,2758.1,2758.0,3.81e-06]
[1724582201399,3.62568,2758.1,2758.0,3.81e-06]
[1724582202119,3.62555,2758.2,2758.0,3.81e-06]
[1724582202441,3.62568,2758.1,2758.0,3.81e-06]
[1724582205232,3.62568,2758.1,2758.0,2.45910381]
[1724582207364,7.25136,2758.1,2758.0,2.45910381]
[1724582207546,7.25136,2758.1,2758.0,3.81e-06]
[1724582207951,7.976496,2758.1,2758.0,3.81e-06]
[1724582209934,14.041676,2758.1,2758.0,3.81e-06]
[1724582210191,17.591676,2758.1,2758.0,3.81e-06]
[1724582210903,15.152176,2758.1,2758.0,3.81e-06]
[1724582223096,7.25136,2758.1,2758.0,3.81e-06]
[1724582223697,10.87704,2758.1,2758.0,3.81e-06]
[1724582224600,11.42704,2758.1,2758.0,3.81e-06]
[1724582225500,14.42704,2758.1,2758.0,3.81e-06]
[1724582226774,18.05272,2758.1,2758.0,3.81e-06]
[1724582228587,21.6784,2758.1,2758.0,3.81e-06]
[1724582229362,23.9663,2758.1,2758.0,3.81e-06]
[1724582229661,7.25398,2757.1,2757.0,7.4947]
[1724582230571,3.62699,2757.1,2757.0,7.4947]
[1724582230905,3.62654,2757.5,2757.1,2.4947]
[1724582231404,3.62681,2757.3,2757.1,2.4947]
[1724582233165,3.62686,2757.2,2757.1,2.4947]
[1724582236780,3.62681,2757.3,2757.1,2.4947]
[1724582237300,7.25367,2757.3,2757.1,2.4947]
[1724582237509,7.25367,2757.3,2757.2,2.4947]
[1724582238412,3.62681,2757.3,2757.2,2.4947]
[1724582241796,7.25367,2757.3,2757.2,2.4947]
[1724582246583,3.62681,2757.3,2757.2,2.4947]
[1724582246748,3.62663,2757.4,2757.2,2.4947]
[1724582247073,3.62663,2757.4,2757.2,3.24417]
[1724582247477,3.62657,2757.5,2757.3,2.4693]
[1724582247977,3.6266,2757.4,2757.3,2.4693]
[1724582251079,7.2532,2757.4,2757.3,2.4693]
[1724582255365,3.6269,2757.2,2757.1,2.4693]
[1724582255895,7.2538,2757.2,2757.1,2.4693]
[1724582257149,3.62652,2757.5,2757.0,5.0]
[1724582257150,7.25398,2757.1,2757.0,5.0]
[1724582266217,3.62699,2757.1,2757.0,5.0]
[1724582266424,3.62699,2757.1,2757.0,7.4932]
[1724582266620,7.25363,2757.3,2757.0,5.74932]
[1724582266804,3.6268,2757.3,2757.1,2.4932]
[1724582267005,7.25361,2757.3,2757.1,2.4932]
[1724582267692,3.62653,2757.5,2757.1,2.4932]
[1724582268119,3.0,2757.6,2757.1,2.4932]
[1724582268120,3.62682,2757.3,2757.1,2.4932]
[1724582269403,3.6268,2757.3,2757.1,2.4932]
[1724582270038,7.25364,2757.3,2757.1,2.4932]
[1724582270942,3.62686,2757.2,2757.1,2.4932]
[1724582276256,3.62699,2757.1,2757.0,5.0]
[1724582276417,7.616679,2757.1,2757.0,5.0]
[1724582276616,11.793669,2757.1,2757.0,5.0]
[1724582277747,7.25398,2757.1,2757.0,5.0]
[1724582282988,3.62679,2757.3,2757.1,2.3741]
[1724582283344,3.62652,2757.5,2757.1,2.3741]
[1724582284540,3.62663,2757.4,2757.1,2.3741]
[1724582284775,3.62663,2757.4,2757.1,3.11151]
[1724582285081,7.46,2757.7,2757.1,2.3741]
[1724582285082,7.25372,2757.2,2757.1,2.3741]
[1724582286342,3.62653,2757.5,2757.0,5.0]
[1724582286343,7.25398,2757.1,2757.0,5.0]
[1724582288846,10.88097,2757.1,2757.0,5.0]
[1724582289047,13.88097,2757.1,2757.0,5.0]
[1724582289251,15.269067,2757.1,2757.0,5.0]
[1724582289443,15.819067,2757.1,2757.0,5.0]
[1724582289673,18.229967,2757.1,2757.0,5.0]
[1724582296364,21.856957,2757.1,2757.0,5.0]